[Event "Titled Tuesday Blitz August 17 2021"]
[White "Machidon, Cristi"]
[Black "Timofeev, Artyom"]
[WhiteFideId "13904590"]
[BlackFideId "4140419"]
[WhiteElo "2312"]
[BlackElo "2582"]
[Result "0-1"]
[Round "03"]
[TimeControl "180+1"]
[Date "2021.08.17"]
[WhiteClock "0:00:02"]
[BlackClock "0:00:33"]

1. d4 {[%clk 0:03:00]}  Nf6 {[%clk 0:02:59]} 2. Nf3 {[%clk 0:03:01]}  g6 {[%clk 0:02:59]} 3. Bg5 {[%clk 0:03:01]}  Bg7 {[%clk 0:02:58]} 4. Nbd2 {[%clk 0:03:01]}  c5 {[%clk 0:02:58]} 5. c3 {[%clk 0:02:59]}  b6 {[%clk 0:02:57]} 6. e3 {[%clk 0:02:58]}  Bb7 {[%clk 0:02:57]} 7. Bd3 {[%clk 0:02:57]}  O-O {[%clk 0:02:56]} 8. a4 {[%clk 0:02:56]}  Nc6 {[%clk 0:02:55]} 9. O-O {[%clk 0:02:52]}  d6 {[%clk 0:02:54]} 10. Qe2 {[%clk 0:02:52]}  h6 {[%clk 0:02:44]} 11. Bxf6 {[%clk 0:02:51]}  Bxf6 {[%clk 0:02:44]} 12. Ba6 {[%clk 0:02:52]}  Bxa6 {[%clk 0:02:37]} 13. Qxa6 {[%clk 0:02:53]}  Bg7 {[%clk 0:02:37]} 14. Rfd1 {[%clk 0:02:51]}  Qc7 {[%clk 0:02:37]} 15. Qe2 {[%clk 0:02:44]}  d5 {[%clk 0:02:31]} 16. Nb3 {[%clk 0:01:22]}  c4 {[%clk 0:02:31]} 17. Nbd2 {[%clk 0:01:22]}  a6 {[%clk 0:02:27]} 18. e4 {[%clk 0:01:19]}  e6 {[%clk 0:02:26]} 19. exd5 {[%clk 0:01:17]}  exd5 {[%clk 0:02:26]} 20. Re1 {[%clk 0:01:18]}  b5 {[%clk 0:02:23]} 21. axb5 {[%clk 0:01:16]}  axb5 {[%clk 0:02:23]} 22. Nf1 {[%clk 0:01:13]}  b4 {[%clk 0:02:16]} 23. Ne3 {[%clk 0:01:11]}  Qd6 {[%clk 0:02:17]} 24. Ng4 {[%clk 0:01:01]}  b3 {[%clk 0:02:10]} 25. g3 {[%clk 0:00:35]}  h5 {[%clk 0:02:00]} 26. Nge5 {[%clk 0:00:31]}  Ra2 {[%clk 0:01:50]} 27. Nxc6 {[%clk 0:00:30]}  Qxc6 {[%clk 0:01:49]} 28. Rxa2 {[%clk 0:00:29]}  bxa2 {[%clk 0:01:49]} 29. Ra1 {[%clk 0:00:30]}  Ra8 {[%clk 0:01:49]} 30. Qc2 {[%clk 0:00:29]}  Qb5 {[%clk 0:01:45]} 31. Nd2 {[%clk 0:00:26]}  Bh6 {[%clk 0:01:45]} 32. f4 {[%clk 0:00:26]}  g5 {[%clk 0:01:34]} 33. b3 {[%clk 0:00:16]}  cxb3 {[%clk 0:01:30]} 34. Nxb3 {[%clk 0:00:17]}  gxf4 {[%clk 0:01:01]} 35. Rxa2 {[%clk 0:00:17]}  Rxa2 {[%clk 0:01:01]} 36. Qxa2 {[%clk 0:00:18]}  fxg3 {[%clk 0:01:01]} 37. hxg3 {[%clk 0:00:17]}  Qd3 {[%clk 0:01:02]} 38. Qa8+ {[%clk 0:00:11]}  Kg7 {[%clk 0:01:02]} 39. Qxd5 {[%clk 0:00:10]}  Qxc3 {[%clk 0:00:58]} 40. Qe5+ {[%clk 0:00:09]}  Kg8 {[%clk 0:00:56]} 41. Nc5 {[%clk 0:00:08]}  Be3+ {[%clk 0:00:55]} 42. Kg2 {[%clk 0:00:08]}  Bxd4 {[%clk 0:00:54]} 43. Qe8+ {[%clk 0:00:08]}  Kg7 {[%clk 0:00:54]} 44. Ne4 {[%clk 0:00:06]}  Qc2+ {[%clk 0:00:50]} 45. Kh3 {[%clk 0:00:05]}  Qe2 {[%clk 0:00:50]} 46. Nd6 {[%clk 0:00:01]}  Qf1+ {[%clk 0:00:47]} 47. Kh4 {[%clk 0:00:01]}  Bf6+ {[%clk 0:00:33]} 48. Kxh5 {[%clk 0:00:02]}  Qf3+ {[%clk 0:00:33]} 49. g4 {[%clk 0:00:02]}  Qh3# {[%clk 0:00:33]} 0-1


[Site "https://www.chess.com"]

[Event "Titled Tuesday Blitz August 17 2021"]
[White "Maghsoodloo, Parham"]
[Black "TengisChess"]
[WhiteFideId "12539929"]
[WhiteElo "2601"]
[BlackElo "2471"]
[Result "1-0"]
[Round "03"]
[TimeControl "180+1"]
[Date "2021.08.17"]
[WhiteClock "0:00:13"]
[BlackClock "0:00:12"]

1. d4 {[%clk 0:03:00]}  Nf6 {[%clk 0:02:58]} 2. c4 {[%clk 0:03:01]}  g6 {[%clk 0:02:58]} 3. Nf3 {[%clk 0:03:01]}  Bg7 {[%clk 0:02:58]} 4. Nc3 {[%clk 0:02:58]}  O-O {[%clk 0:02:59]} 5. e4 {[%clk 0:02:58]}  c5 {[%clk 0:02:59]} 6. Be2 {[%clk 0:02:55]}  d6 {[%clk 0:02:58]} 7. O-O {[%clk 0:02:54]}  Bg4 {[%clk 0:02:56]} 8. Be3 {[%clk 0:02:50]}  Bxf3 {[%clk 0:02:54]} 9. Bxf3 {[%clk 0:02:49]}  cxd4 {[%clk 0:02:55]} 10. Bxd4 {[%clk 0:02:50]}  Nc6 {[%clk 0:02:55]} 11. Be3 {[%clk 0:02:49]}  Nd7 {[%clk 0:02:56]} 12. Rc1 {[%clk 0:02:49]}  a5 {[%clk 0:02:56]} 13. Qd2 {[%clk 0:02:46]}  Nc5 {[%clk 0:02:56]} 14. Rfd1 {[%clk 0:02:41]}  a4 {[%clk 0:02:55]} 15. Qc2 {[%clk 0:01:57]}  Qa5 {[%clk 0:02:48]} 16. Nd5 {[%clk 0:01:44]}  Rfc8 {[%clk 0:02:47]} 17. Bd2 {[%clk 0:01:36]}  Qd8 {[%clk 0:02:45]} 18. Bc3 {[%clk 0:01:36]}  Ne5 {[%clk 0:02:30]} 19. Be2 {[%clk 0:01:35]}  Ne6 {[%clk 0:02:24]} 20. b3 {[%clk 0:01:24]}  axb3 {[%clk 0:02:21]} 21. axb3 {[%clk 0:01:25]}  Nd7 {[%clk 0:02:00]} 22. Bxg7 {[%clk 0:01:23]}  Kxg7 {[%clk 0:02:01]} 23. b4 {[%clk 0:01:22]}  Kg8 {[%clk 0:01:54]} 24. Qb2 {[%clk 0:01:17]}  Nb6 {[%clk 0:01:49]} 25. Ne3 {[%clk 0:01:13]}  Qe8 {[%clk 0:01:43]} 26. h4 {[%clk 0:01:12]}  Qa4 {[%clk 0:01:38]} 27. Ra1 {[%clk 0:01:09]}  Qe8 {[%clk 0:01:34]} 28. h5 {[%clk 0:01:01]}  Rxa1 {[%clk 0:01:32]} 29. Rxa1 {[%clk 0:00:57]}  Ra8 {[%clk 0:01:33]} 30. g3 {[%clk 0:00:52]}  Rxa1+ {[%clk 0:01:28]} 31. Qxa1 {[%clk 0:00:53]}  Qa8 {[%clk 0:01:29]} 32. Qc3 {[%clk 0:00:52]}  Qa2 {[%clk 0:01:25]} 33. Ng4 {[%clk 0:00:28]}  f6 {[%clk 0:01:06]} 34. Bd3 {[%clk 0:00:16]}  Nd7 {[%clk 0:00:47]} 35. f4 {[%clk 0:00:15]}  gxh5 {[%clk 0:00:37]} 36. Nh6+ {[%clk 0:00:15]}  Kf8 {[%clk 0:00:36]} 37. Nf5 {[%clk 0:00:16]}  Ng7 {[%clk 0:00:34]} 38. Nh4 {[%clk 0:00:11]}  Qa4 {[%clk 0:00:26]} 39. Kf2 {[%clk 0:00:09]}  Qd1 {[%clk 0:00:26]} 40. Be2 {[%clk 0:00:09]}  Qh1 {[%clk 0:00:24]} 41. Bf3 {[%clk 0:00:09]}  Qb1 {[%clk 0:00:21]} 42. Qd2 {[%clk 0:00:06]}  Nb6 {[%clk 0:00:15]} 43. c5 {[%clk 0:00:05]}  Nc4 {[%clk 0:00:15]} 44. Qc3 {[%clk 0:00:05]}  Qb2+ {[%clk 0:00:13]} 45. Qxb2 {[%clk 0:00:05]}  Nxb2 {[%clk 0:00:14]} 46. cxd6 {[%clk 0:00:05]}  exd6 {[%clk 0:00:15]} 47. Be2 {[%clk 0:00:06]}  Na4 {[%clk 0:00:12]} 48. Ke3 {[%clk 0:00:06]}  Nb6 {[%clk 0:00:13]} 49. Kd4 {[%clk 0:00:06]}  Ke7 {[%clk 0:00:13]} 50. Bc4 {[%clk 0:00:04]}  Nd7 {[%clk 0:00:11]} 51. Bg8 {[%clk 0:00:04]}  h6 {[%clk 0:00:09]} 52. Bd5 {[%clk 0:00:03]}  b6 {[%clk 0:00:08]} 53. Kc4 {[%clk 0:00:03]}  Kd8 {[%clk 0:00:07]} 54. Kb5 {[%clk 0:00:03]}  Kc7 {[%clk 0:00:07]} 55. Bf7 {[%clk 0:00:03]}  Nb8 {[%clk 0:00:08]} 56. Bd5 {[%clk 0:00:03]}  Nd7 {[%clk 0:00:07]} 57. Kc4 {[%clk 0:00:04]}  Nb8 {[%clk 0:00:07]} 58. Ng6 {[%clk 0:00:04]}  Nc6 {[%clk 0:00:06]} 59. Bxc6 {[%clk 0:00:04]}  Kxc6 {[%clk 0:00:07]} 60. Ne7+ {[%clk 0:00:04]}  Kd7 {[%clk 0:00:06]} 61. Nd5 {[%clk 0:00:05]}  f5 {[%clk 0:00:05]} 62. Kd4 {[%clk 0:00:04]}  Ne6+ {[%clk 0:00:05]} 63. Ke3 {[%clk 0:00:04]}  fxe4 {[%clk 0:00:05]} 64. Kxe4 {[%clk 0:00:04]}  Kc6 {[%clk 0:00:04]} 65. Nc3 {[%clk 0:00:04]}  b5 {[%clk 0:00:04]} 66. f5 {[%clk 0:00:04]}  Nf8 {[%clk 0:00:05]} 67. f6 {[%clk 0:00:04]}  Kd7 {[%clk 0:00:05]} 68. Kf5 {[%clk 0:00:04]}  Ne6 {[%clk 0:00:03]} 69. Nxb5 {[%clk 0:00:04]}  d5 {[%clk 0:00:03]} 70. Ke5 {[%clk 0:00:04]}  d4 {[%clk 0:00:02]} 71. Nxd4 {[%clk 0:00:04]}  Ng5 {[%clk 0:00:03]} 72. Kf5 {[%clk 0:00:04]}  Nf7 {[%clk 0:00:04]} 73. b5 {[%clk 0:00:05]}  Nd6+ {[%clk 0:00:03]} 74. Kg6 {[%clk 0:00:05]}  Ke8 {[%clk 0:00:04]} 75. b6 {[%clk 0:00:05]}  h4 {[%clk 0:00:01]} 76. gxh4 {[%clk 0:00:05]}  Kd7 {[%clk 0:00:02]} 77. h5 {[%clk 0:00:05]}  Kc8 {[%clk 0:00:01]} 78. Kg7 {[%clk 0:00:05]}  Kb7 {[%clk 0:00:01]} 79. f7 {[%clk 0:00:04]}  Nxf7 {[%clk 0:00:01]} 80. Kxf7 {[%clk 0:00:05]}  Kxb6 {[%clk 0:00:02]} 81. Nf5 {[%clk 0:00:06]}  Kc5 {[%clk 0:00:03]} 82. Nxh6 {[%clk 0:00:07]}  Kd5 {[%clk 0:00:04]} 83. Ng8 {[%clk 0:00:07]}  Ke5 {[%clk 0:00:05]} 84. h6 {[%clk 0:00:08]}  Kf5 {[%clk 0:00:06]} 85. h7 {[%clk 0:00:09]}  Kg5 {[%clk 0:00:07]} 86. h8=Q {[%clk 0:00:10]}  Kf4 {[%clk 0:00:08]} 87. Qf6+ {[%clk 0:00:11]}  Kg3 {[%clk 0:00:09]} 88. Ne7 {[%clk 0:00:12]}  Kg4 {[%clk 0:00:09]} 89. Qf5+ {[%clk 0:00:12]}  Kh4 {[%clk 0:00:10]} 90. Qg6 {[%clk 0:00:12]}  Kh3 {[%clk 0:00:10]} 91. Nd5 {[%clk 0:00:12]}  Kh2 {[%clk 0:00:11]} 92. Ne3 {[%clk 0:00:12]}  Kh3 {[%clk 0:00:12]} 93. Qg4+ {[%clk 0:00:13]}  Kh2 {[%clk 0:00:12]} 94. Qg2# {[%clk 0:00:13]} 1-0


[Site "https://www.chess.com"]

[Event "Titled Tuesday Blitz August 17 2021"]
[White "Makhnev, Denis"]
[Black "Martins, Igor Carvalho Ribeiro"]
[WhiteFideId "13707647"]
[BlackFideId "2162962"]
[WhiteElo "2537"]
[BlackElo "2465"]
[Result "1-0"]
[Round "03"]
[TimeControl "180+1"]
[Date "2021.08.17"]
[WhiteClock "0:00:14"]
[BlackClock "0:00:11"]

1. d4 {[%clk 0:03:00]}  Nf6 {[%clk 0:02:59]} 2. c4 {[%clk 0:03:01]}  e6 {[%clk 0:02:58]} 3. Nf3 {[%clk 0:03:01]}  Bb4+ {[%clk 0:02:58]} 4. Bd2 {[%clk 0:03:01]}  Qe7 {[%clk 0:02:57]} 5. e3 {[%clk 0:03:01]}  b6 {[%clk 0:02:56]} 6. Bd3 {[%clk 0:03:01]}  Bb7 {[%clk 0:02:56]} 7. O-O {[%clk 0:03:02]}  Bxd2 {[%clk 0:02:50]} 8. Nbxd2 {[%clk 0:03:01]}  d6 {[%clk 0:02:48]} 9. e4 {[%clk 0:02:37]}  e5 {[%clk 0:02:43]} 10. c5 {[%clk 0:02:37]}  O-O {[%clk 0:02:30]} 11. Rc1 {[%clk 0:02:34]}  dxc5 {[%clk 0:02:11]} 12. dxc5 {[%clk 0:02:16]}  Nc6 {[%clk 0:02:10]} 13. Qe2 {[%clk 0:01:38]}  Rad8 {[%clk 0:02:06]} 14. a3 {[%clk 0:01:13]}  Nd4 {[%clk 0:01:46]} 15. Nxd4 {[%clk 0:01:06]}  Rxd4 {[%clk 0:01:46]} 16. Nf3 {[%clk 0:01:07]}  Rdd8 {[%clk 0:01:37]} 17. b4 {[%clk 0:01:05]}  Bc8 {[%clk 0:01:29]} 18. Rfd1 {[%clk 0:00:51]}  Bg4 {[%clk 0:01:25]} 19. h3 {[%clk 0:00:48]}  Bxf3 {[%clk 0:01:24]} 20. Qxf3 {[%clk 0:00:49]}  Rd4 {[%clk 0:01:24]} 21. Bb1 {[%clk 0:00:46]}  Rfd8 {[%clk 0:01:20]} 22. Rxd4 {[%clk 0:00:46]}  Rxd4 {[%clk 0:01:19]} 23. cxb6 {[%clk 0:00:46]}  cxb6 {[%clk 0:01:17]} 24. Rc8+ {[%clk 0:00:41]}  Rd8 {[%clk 0:01:15]} 25. Qc3 {[%clk 0:00:41]}  h6 {[%clk 0:01:04]} 26. Bd3 {[%clk 0:00:35]}  Rxc8 {[%clk 0:00:54]} 27. Qxc8+ {[%clk 0:00:34]}  Kh7 {[%clk 0:00:55]} 28. Bc4 {[%clk 0:00:33]}  g6 {[%clk 0:00:50]} 29. Qc6 {[%clk 0:00:32]}  Kg7 {[%clk 0:00:48]} 30. Bd5 {[%clk 0:00:32]}  Qd7 {[%clk 0:00:39]} 31. Qc4 {[%clk 0:00:30]}  Ne8 {[%clk 0:00:31]} 32. Qc3 {[%clk 0:00:28]}  Qe7 {[%clk 0:00:29]} 33. f4 {[%clk 0:00:28]}  f6 {[%clk 0:00:29]} 34. fxe5 {[%clk 0:00:25]}  Qxe5 {[%clk 0:00:29]} 35. Qc6 {[%clk 0:00:25]}  Qa1+ {[%clk 0:00:29]} 36. Kh2 {[%clk 0:00:25]}  Qe5+ {[%clk 0:00:28]} 37. Kg1 {[%clk 0:00:25]}  Qa1+ {[%clk 0:00:28]} 38. Kf2 {[%clk 0:00:25]}  Qd4+ {[%clk 0:00:28]} 39. Ke2 {[%clk 0:00:24]}  Qb2+ {[%clk 0:00:26]} 40. Kd1 {[%clk 0:00:19]}  Qd4+ {[%clk 0:00:25]} 41. Kc2 {[%clk 0:00:18]}  Qf2+ {[%clk 0:00:22]} 42. Kb3 {[%clk 0:00:19]}  Qe3+ {[%clk 0:00:21]} 43. Ka4 {[%clk 0:00:19]}  b5+ {[%clk 0:00:15]} 44. Qxb5 {[%clk 0:00:15]}  Kf8 {[%clk 0:00:11]} 45. Qd7 {[%clk 0:00:14]} 1-0


[Site "https://www.chess.com"]

[Event "Titled Tuesday Blitz August 17 2021"]
[White "Martin Carmona, Gaston Manuel"]
[Black "Sapunov, Evgeny"]
[WhiteFideId "22284567"]
[BlackFideId "4126661"]
[WhiteElo "2161"]
[BlackElo "2470"]
[Result "0-1"]
[Round "03"]
[TimeControl "180+1"]
[Date "2021.08.17"]
[WhiteClock "0:00:02"]
[BlackClock "0:00:24"]

1. d4 {[%clk 0:03:00]}  Nf6 {[%clk 0:02:59]} 2. c4 {[%clk 0:03:00]}  g6 {[%clk 0:03:00]} 3. Nc3 {[%clk 0:03:00]}  Bg7 {[%clk 0:03:00]} 4. Nf3 {[%clk 0:02:56]}  O-O {[%clk 0:03:00]} 5. e3 {[%clk 0:02:54]}  d6 {[%clk 0:03:00]} 6. Be2 {[%clk 0:02:54]}  Nbd7 {[%clk 0:02:59]} 7. O-O {[%clk 0:02:54]}  e5 {[%clk 0:03:00]} 8. Qc2 {[%clk 0:02:53]}  Re8 {[%clk 0:02:59]} 9. b4 {[%clk 0:02:52]}  e4 {[%clk 0:02:58]} 10. Nd2 {[%clk 0:02:52]}  Qe7 {[%clk 0:02:58]} 11. a4 {[%clk 0:02:45]}  h5 {[%clk 0:02:57]} 12. b5 {[%clk 0:02:45]}  Nf8 {[%clk 0:02:57]} 13. a5 {[%clk 0:02:45]}  Bf5 {[%clk 0:02:56]} 14. a6 {[%clk 0:02:39]}  b6 {[%clk 0:02:56]} 15. Ba3 {[%clk 0:02:38]}  Ne6 {[%clk 0:02:55]} 16. Nb3 {[%clk 0:02:31]}  h4 {[%clk 0:02:50]} 17. Rfc1 {[%clk 0:02:20]}  h3 {[%clk 0:02:50]} 18. g3 {[%clk 0:02:19]}  Ng5 {[%clk 0:02:50]} 19. Qd1 {[%clk 0:02:02]}  Qd7 {[%clk 0:02:45]} 20. c5 {[%clk 0:01:58]}  Bg4 {[%clk 0:02:45]} 21. Nd2 {[%clk 0:01:40]}  d5 {[%clk 0:02:39]} 22. cxb6 {[%clk 0:01:29]}  cxb6 {[%clk 0:02:39]} 23. Bxg4 {[%clk 0:01:14]}  Nxg4 {[%clk 0:02:38]} 24. Ne2 {[%clk 0:01:15]}  Qxb5 {[%clk 0:02:21]} 25. Rc7 {[%clk 0:01:07]}  Rec8 {[%clk 0:02:18]} 26. Nc3 {[%clk 0:00:52]}  Qd3 {[%clk 0:02:06]} 27. Nxd5 {[%clk 0:00:50]}  Rxc7 {[%clk 0:01:29]} 28. Nxc7 {[%clk 0:00:51]}  Qxd2 {[%clk 0:01:27]} 29. Qxg4 {[%clk 0:00:46]}  Nf3+ {[%clk 0:01:26]} 30. Kh1 {[%clk 0:00:37]}  Qxf2 {[%clk 0:01:23]} 31. Qxh3 {[%clk 0:00:38]}  Rd8 {[%clk 0:01:20]} 32. Qg2 {[%clk 0:00:20]}  Qxe3 {[%clk 0:01:20]} 33. Nb5 {[%clk 0:00:20]}  Bxd4 {[%clk 0:01:14]} 34. Rf1 {[%clk 0:00:19]}  Be5 {[%clk 0:01:06]} 35. Bc1 {[%clk 0:00:18]}  Qd3 {[%clk 0:01:03]} 36. Nxa7 {[%clk 0:00:16]}  Qxa6 {[%clk 0:00:56]} 37. Nc6 {[%clk 0:00:15]}  Re8 {[%clk 0:00:54]} 38. Nxe5 {[%clk 0:00:13]}  Rxe5 {[%clk 0:00:54]} 39. Bf4 {[%clk 0:00:14]}  Rd5 {[%clk 0:00:51]} 40. Rc1 {[%clk 0:00:10]}  Qd3 {[%clk 0:00:43]} 41. Rc8+ {[%clk 0:00:08]}  Rd8 {[%clk 0:00:43]} 42. Rxd8+ {[%clk 0:00:07]}  Qxd8 {[%clk 0:00:43]} 43. Qe2 {[%clk 0:00:08]}  Qd3 {[%clk 0:00:40]} 44. Qf2 {[%clk 0:00:03]}  b5 {[%clk 0:00:35]} 45. Kg2 {[%clk 0:00:03]}  b4 {[%clk 0:00:35]} 46. h4 {[%clk 0:00:02]}  b3 {[%clk 0:00:35]} 47. Qb6 {[%clk 0:00:02]}  Qe2+ {[%clk 0:00:31]} 48. Kh3 {[%clk 0:00:02]}  b2 {[%clk 0:00:24]} 0-1


[Site "https://www.chess.com"]

[Event "Titled Tuesday Blitz August 17 2021"]
[White "Matinian, Nikita"]
[Black "Grachev, Boris"]
[WhiteFideId "24129100"]
[BlackFideId "4129199"]
[WhiteElo "2410"]
[BlackElo "2580"]
[Result "1/2-1/2"]
[Round "03"]
[TimeControl "180+1"]
[Date "2021.08.17"]
[WhiteClock "0:00:11"]
[BlackClock "0:00:28"]

1. e4 {[%clk 0:03:00]}  c5 {[%clk 0:02:59]} 2. Nf3 {[%clk 0:03:01]}  e6 {[%clk 0:02:58]} 3. d4 {[%clk 0:03:01]}  cxd4 {[%clk 0:02:59]} 4. Nxd4 {[%clk 0:03:02]}  Nf6 {[%clk 0:02:59]} 5. Nc3 {[%clk 0:03:03]}  Nc6 {[%clk 0:02:59]} 6. a3 {[%clk 0:03:00]}  Qc7 {[%clk 0:02:54]} 7. Be2 {[%clk 0:02:58]}  a6 {[%clk 0:02:53]} 8. Be3 {[%clk 0:02:57]}  Be7 {[%clk 0:02:51]} 9. O-O {[%clk 0:02:57]}  d6 {[%clk 0:02:51]} 10. f4 {[%clk 0:02:57]}  O-O {[%clk 0:02:51]} 11. Qe1 {[%clk 0:02:57]}  Nxd4 {[%clk 0:02:50]} 12. Bxd4 {[%clk 0:02:57]}  b5 {[%clk 0:02:51]} 13. Qg3 {[%clk 0:02:55]}  Bb7 {[%clk 0:02:50]} 14. Kh1 {[%clk 0:02:56]}  Rad8 {[%clk 0:02:38]} 15. Bd3 {[%clk 0:02:54]}  Bc6 {[%clk 0:02:35]} 16. Rae1 {[%clk 0:02:52]}  Qd7 {[%clk 0:02:35]} 17. Rf3 {[%clk 0:02:48]}  Nh5 {[%clk 0:02:32]} 18. Qf2 {[%clk 0:02:35]}  Nxf4 {[%clk 0:02:21]} 19. Bxg7 {[%clk 0:01:50]}  Kxg7 {[%clk 0:02:11]} 20. Rxf4 {[%clk 0:01:46]}  e5 {[%clk 0:02:11]} 21. Rf3 {[%clk 0:01:37]}  Kh8 {[%clk 0:01:55]} 22. Nd5 {[%clk 0:01:34]}  f5 {[%clk 0:01:41]} 23. Nxe7 {[%clk 0:01:17]}  Qxe7 {[%clk 0:01:41]} 24. Rxf5 {[%clk 0:01:16]}  Rxf5 {[%clk 0:01:41]} 25. exf5 {[%clk 0:01:17]}  Rg8 {[%clk 0:01:34]} 26. Be4 {[%clk 0:01:11]}  Bxe4 {[%clk 0:01:14]} 27. Rxe4 {[%clk 0:01:12]}  Qg5 {[%clk 0:01:14]} 28. h3 {[%clk 0:01:03]}  Rf8 {[%clk 0:01:12]} 29. Qb6 {[%clk 0:00:42]}  Rg8 {[%clk 0:00:53]} 30. Rg4 {[%clk 0:00:17]}  Qc1+ {[%clk 0:00:40]} 31. Kh2 {[%clk 0:00:16]}  Rxg4 {[%clk 0:00:39]} 32. hxg4 {[%clk 0:00:17]}  Qh6+ {[%clk 0:00:32]} 33. Kg3 {[%clk 0:00:16]}  Qf4+ {[%clk 0:00:31]} 34. Kh3 {[%clk 0:00:16]}  Qh6+ {[%clk 0:00:31]} 35. Kg3 {[%clk 0:00:11]}  Qf4+ {[%clk 0:00:28]} 36. Kh3 {[%clk 0:00:11]}  Qh6+ {[%clk 0:00:28]} 37. Kg3 {[%clk 0:00:11]} 1/2-1/2


[Site "https://www.chess.com"]